bitfinex-derivatives/quotes_SOLF0:USTF0_20260208
["timestamp","ask_amount","ask_price","bid_price","bid_amount"]
[1770562285559,13.13248374,88.476,88.405,13.77081242]
[1770562285765,13.27245522,88.474,88.403,10.1885]
[1770562286360,10.1806,88.473,88.392,13.77081242]
[1770562286761,13.27245522,88.472,88.38,13.77081242]
[1770562287065,13.27245522,88.456,88.38,13.77081242]
[1770562287658,13.27245522,88.447,88.367,13.77081242]
[1770562288965,13.27245522,88.445,88.367,13.77081242]
[1770562289163,13.27245522,88.445,88.355,13.77081242]
[1770562290464,13.27245522,88.429,88.361,13.77081242]
[1770562291065,13.27245522,88.429,88.373,13.77081242]
[1770562291261,13.27245522,88.483,88.373,13.77081242]
[1770562291970,13.27245522,88.471,88.391,13.77081242]
[1770562292866,13.27245522,88.462,88.393,10.1897]
[1770562293062,13.27245522,88.462,88.394,13.77081242]
[1770562294971,13.27245522,88.46,88.394,13.77081242]
[1770562295967,13.27245522,88.456,88.362,13.77081242]
[1770562296567,13.27245522,88.426,88.362,13.77081242]
[1770562298973,13.27245522,88.424,88.362,13.77081242]
[1770562299275,13.27245522,88.424,88.343,13.77081242]
[1770562299471,13.27245522,88.424,88.294,158.6844]
[1770562299472,13.27245522,88.415,88.345,10.1952]
[1770562299676,13.27245522,88.415,88.346,13.77081242]
[1770562301366,13.27245522,88.415,88.35,13.77081242]
[1770562302878,13.27245522,88.415,88.354,13.77081242]
[1770562304783,13.27245522,88.415,88.303,158.6679]
[1770562304784,13.27245522,88.415,88.357,13.02956521]
[1770562305685,13.27245522,88.415,88.358,10.1937]
[1770562305867,13.27245522,88.415,88.359,13.02956521]
[1770562306267,13.92543444,88.462,88.297,303.68473433]
[1770562306268,12.40958442,88.429,88.366,13.02956521]
[1770562307478,10.1857,88.428,88.366,13.02956521]
[1770562307679,12.40958442,88.429,88.366,13.02956521]
[1770562308781,12.40958442,88.429,88.368,10.1925]
[1770562309090,12.40958442,88.429,88.369,13.02956521]
[1770562310082,12.40958442,88.427,88.369,13.02956521]
[1770562311986,12.40958442,88.427,88.37,10.1923]
[1770562312178,12.40958442,88.427,88.371,13.02956521]
[1770562312679,12.40958442,88.427,88.375,13.02956521]
[1770562315087,12.40958442,88.427,88.381,13.02956521]
[1770562316081,12.40958442,88.427,88.314,20.3976]
[1770562316082,12.40958442,88.427,88.375,10.1917]
[1770562316683,12.40958442,88.427,88.369,13.02956521]
[1770562317387,12.40958442,88.427,88.371,13.02956521]
[1770562318687,12.40958442,88.427,88.372,10.192]
[1770562318884,12.40958442,88.427,88.373,13.02956521]
[1770562320584,12.40958442,88.425,88.373,13.02956521]
[1770562322997,12.40958442,88.425,88.374,10.1918]
[1770562323186,12.40958442,88.425,88.318,158.64]
[1770562323187,12.40958442,88.425,88.375,13.02956521]
[1770562324597,12.40958442,88.438,88.378,13.02956521]
[1770562325793,12.40958442,88.438,88.386,13.02956521]
[1770562328502,12.40958442,88.438,88.388,13.02956521]
[1770562330194,12.40958442,88.436,88.388,13.02956521]
[1770562331391,12.40958442,88.434,88.388,13.02956521]
[1770562332997,12.40958442,88.434,88.389,10.19]
[1770562333202,12.40958442,88.434,88.39,13.02956521]
[1770562337402,20.37312795,88.433,88.367,10.1926]
[1770562337606,12.07011933,88.431,88.368,13.24031733]
[1770562337805,12.07011933,88.429,88.368,13.24031733]
[1770562338108,12.07011933,88.427,88.369,10.1925]
[1770562338406,12.07011933,88.425,88.37,13.24031733]
[1770562338606,12.07011933,88.423,88.37,13.24031733]
[1770562338807,8.36302846,88.422,88.372,13.24031733]
[1770562339115,8.36302846,88.421,88.372,13.24031733]
[1770562339405,8.36302846,88.42,88.372,13.24031733]
[1770562339612,8.36302846,88.419,88.372,13.24031733]
[1770562339813,8.36302846,88.422,88.372,13.24031733]
[1770562340109,8.36302846,88.421,88.372,13.24031733]
[1770562340309,8.36302846,88.42,88.372,13.24031733]
[1770562340498,8.36302846,88.419,88.372,13.24031733]
[1770562340701,8.36302846,88.418,88.372,13.24031733]
[1770562340903,12.07011933,88.421,88.372,13.24031733]
[1770562341211,20.43314779,88.42,88.372,13.24031733]
[1770562341508,8.36302846,88.419,88.372,13.24031733]
[1770562341720,8.36302846,88.418,88.372,13.24031733]
[1770562341912,8.36302846,88.419,88.372,13.24031733]
[1770562342104,8.36302846,88.418,88.372,13.24031733]
[1770562342300,8.36302846,88.417,88.372,13.24031733]
[1770562342501,8.36302846,88.419,88.372,13.24031733]
[1770562342701,8.36302846,88.418,88.372,13.24031733]
[1770562342905,8.36302846,88.419,88.375,13.24031733]
[1770562343105,8.36302846,88.43,88.375,13.24031733]
[1770562343306,8.36302846,88.429,88.375,13.24031733]
[1770562343502,8.36302846,88.428,88.375,13.24031733]
[1770562343702,8.36302846,88.427,88.375,13.24031733]
[1770562343904,8.36302846,88.426,88.375,13.24031733]
[1770562344209,8.36302846,88.43,88.375,13.24031733]
[1770562344417,8.36302846,88.429,88.375,13.24031733]
[1770562344613,8.36302846,88.428,88.375,13.24031733]
[1770562344813,8.36302846,88.427,88.378,13.24031733]
[1770562345016,8.36302846,88.43,88.378,13.24031733]
[1770562345214,8.36302846,88.429,88.378,13.24031733]
[1770562345414,8.36302846,88.428,88.378,13.24031733]
[1770562345614,8.36302846,88.427,88.378,13.24031733]
[1770562345804,12.07011933,88.432,88.378,13.24031733]
[1770562345805,8.36302846,88.43,88.378,13.24031733]
[1770562346009,8.36302846,88.429,88.378,13.24031733]
[1770562346205,8.36302846,88.428,88.378,13.24031733]
[1770562346517,8.36302846,88.44,88.378,13.24031733]
[1770562346717,12.07011933,88.438,88.378,13.24031733]
[1770562346917,8.36302846,88.437,88.378,13.24031733]
[1770562347512,8.36302846,88.436,88.378,13.24031733]
[1770562347812,8.36302846,88.435,88.39,13.24031733]
[1770562348007,8.36302846,88.437,88.39,13.24031733]
[1770562348210,8.36302846,88.436,88.39,13.24031733]
[1770562348411,8.36302846,88.437,88.39,13.24031733]
[1770562348617,20.43314779,88.436,88.39,13.24031733]
[1770562348818,12.07011933,88.436,88.392,10.1898]
[1770562349006,12.07011933,88.436,88.393,13.24031733]
[1770562350621,12.07011933,88.436,88.336,20.3925]
[1770562350622,12.07011933,88.421,88.348,13.24031733]
[1770562350822,12.07011933,88.419,88.348,13.24031733]
[1770562351121,12.07011933,88.417,88.348,13.24031733]
[1770562351310,12.07011933,88.415,88.36,13.24031733]
[1770562352722,12.07011933,88.415,88.368,10.1926]
[1770562352921,12.07011933,88.415,88.369,13.24031733]
[1770562353824,12.07011933,88.415,88.38,10.1912]
[1770562354026,12.07011933,88.415,88.369,13.24031733]
[1770562354727,12.07011933,88.415,88.37,10.1923]
[1770562357025,12.07011933,88.413,88.324,13.24031733]
[1770562357227,12.07011933,88.411,88.324,13.24031733]
[1770562357427,12.07011933,88.409,88.324,13.24031733]
[1770562357624,12.07011933,88.407,88.324,13.24031733]
[1770562357827,12.07011933,88.405,88.324,13.24031733]
[1770562358029,12.07011933,88.403,88.324,13.24031733]
[1770562358231,12.07011933,88.401,88.324,13.24031733]
[1770562358430,12.07011933,88.4,88.324,13.24031733]
[1770562358620,12.07011933,88.399,88.324,13.24031733]
[1770562358819,12.07011933,88.399,88.332,13.24031733]
[1770562359724,12.07011933,88.399,88.335,10.1964]
[1770562359928,12.07011933,88.399,88.336,13.24031733]
[1770562360131,12.07011933,88.389,88.336,13.24031733]
[1770562360934,12.07011933,88.389,88.289,13.24031733]
[1770562361745,12.07011933,88.389,88.324,10.1976]
[1770562361942,12.07011933,88.389,88.325,13.24031733]
[1770562363444,12.07011933,88.379,88.325,13.24031733]
[1770562364141,12.07011933,88.379,88.289,13.24031733]
[1770562364947,11.96531277,88.37,88.303,12.35805749]
[1770562366743,11.96531277,88.37,88.316,12.35805749]
[1770562367951,11.96531277,88.37,88.318,12.35805749]
[1770562368853,11.96531277,88.415,88.33,12.35805749]
[1770562369953,11.96531277,88.405,88.337,12.35805749]
[1770562370748,11.96531277,88.405,88.34,12.35805749]
[1770562371551,13.92543444,88.456,88.353,12.35805749]
[1770562371552,11.96531277,88.418,88.353,12.35805749]
[1770562372848,11.96531277,88.418,88.301,21.11629362]
[1770562372849,11.96531277,88.418,88.36,12.35805749]
[1770562373556,11.96531277,88.418,88.361,10.1933]
[1770562373757,10.5509503,88.462,88.362,12.35805749]
[1770562373953,11.96531277,88.461,88.362,12.35805749]
[1770562374757,11.96531277,88.45,88.38,10.1912]
[1770562375147,11.96531277,88.45,88.38,22.54925749]
[1770562377656,11.96531277,88.45,88.382,10.1909]
[1770562378558,10.1833,88.449,88.382,10.1909]
[1770562378759,11.96531277,88.448,88.383,12.35805749]
[1770562379862,10.1837,88.446,88.383,12.35805749]
[1770562380159,11.96531277,88.445,88.383,12.35805749]
[1770562381754,11.96531277,88.443,88.383,12.35805749]
[1770562386057,11.96531277,88.44,88.373,12.35805749]
[1770562386264,11.96531277,88.44,88.377,12.35805749]
[1770562387766,11.96531277,88.44,88.379,12.35805749]
[1770562388367,11.96531277,88.438,88.381,12.35805749]
[1770562390859,11.96531277,88.433,88.369,12.35805749]
[1770562392769,11.96531277,88.43,88.369,12.35805749]
[1770562393471,10.1856,88.429,88.369,12.35805749]
[1770562393663,11.96531277,88.428,88.369,12.35805749]
[1770562394871,11.44747265,88.425,88.369,12.35805749]
[1770562396568,12.600561,88.422,88.369,12.35805749]
[1770562398564,10.1871,88.416,88.369,12.35805749]
[1770562398768,12.600561,88.415,88.358,12.55347588]
[1770562399475,12.600561,88.41,88.358,12.55347588]
[1770562399872,12.600561,88.41,88.294,11.31]
[1770562399873,9.08934364,88.379,88.31,12.55347588]
[1770562401272,8.90684573,88.376,88.313,12.55347588]
[1770562403177,8.30178739,88.372,88.313,12.55347588]
[1770562403773,8.319278,88.37,88.313,12.55347588]
[1770562404073,8.319278,88.37,88.317,12.55347588]
[1770562404376,8.70557983,88.366,88.283,12.55347588]
[1770562405669,10.1944,88.353,88.283,12.55347588]
[1770562405875,8.74057858,88.352,88.283,12.55347588]
[1770562407369,8.33054993,88.341,88.283,12.55347588]
[1770562408380,8.33054993,88.341,88.284,10.2023]
[1770562408582,8.33054993,88.341,88.285,12.55347588]
[1770562409977,8.33054993,88.341,88.226,298.4919791]
[1770562409978,8.33054993,88.341,88.271,22.75717588]
[1770562410170,8.33054993,88.341,88.272,12.55347588]
[1770562410579,8.60693179,88.337,88.272,12.55347588]
[1770562411785,8.63948763,88.331,88.272,12.55347588]
[1770562412683,8.40924505,88.324,88.272,12.55347588]
[1770562413682,8.40901576,88.337,88.272,12.55347588]
[1770562414791,8.40901576,88.337,88.273,10.2035]
[1770562414992,8.40901576,88.337,88.274,12.55347588]
[1770562418488,8.22440424,88.335,88.274,12.55347588]
[1770562419590,8.22440424,88.335,88.276,10.2031]
[1770562419796,8.22440424,88.335,88.277,12.55347588]
[1770562420692,8.22440424,88.335,88.226,298.4919791]
[1770562420693,8.57822825,88.394,88.279,12.55347588]
[1770562421792,8.59262005,88.357,88.3,12.55347588]
[1770562424595,8.6448125,88.355,88.3,12.55347588]
[1770562428191,8.6448125,88.355,88.227,33.98]
[1770562428192,9.72408351,88.342,88.256,12.26709498]
[1770562429692,9.73786,88.329,88.267,12.26709498]
[1770562430797,9.73786,88.329,88.272,12.26709498]
[1770562431798,9.73786,88.329,88.273,10.2034]
[1770562432095,9.73786,88.329,88.274,12.26709498]
[1770562434398,9.73786,88.329,88.275,10.2033]
[1770562434597,9.73786,88.329,88.276,12.26709498]
[1770562437994,10.1972,88.328,88.276,12.26709498]
[1770562438695,20.37227296,88.328,88.276,12.26709498]
[1770562439102,10.18752564,88.327,88.276,12.26709498]
[1770562439301,20.3831,88.378,88.276,12.26709498]
[1770562439302,10.18752564,88.325,88.276,12.26709498]
[1770562440709,10.03507829,88.321,88.276,12.26709498]
[1770562445115,10.10192606,88.319,88.256,12.26709498]
[1770562445315,10.10192606,88.318,88.256,12.26709498]
[1770562446608,10.41756083,88.316,88.258,12.26709498]
[1770562448614,8.36302846,88.327,88.258,12.26709498]
[1770562448615,10.2362911,88.311,88.258,12.26709498]
[1770562449020,442.32195969,88.35,88.227,12.26709498]
[1770562449021,10.24726002,88.299,88.227,12.26709498]
[1770562449617,10.2012,88.293,88.233,10.2081]
[1770562449815,10.25783069,88.292,88.234,12.26709498]
[1770562450819,10.2017,88.29,88.234,12.26709498]
[1770562451210,10.2017,88.29,88.236,10.2077]
[1770562451518,10.2017,88.29,88.237,12.26709498]
[1770562451718,20.45067541,88.29,88.237,12.26709498]
[1770562452918,10.29928357,88.289,88.237,12.26709498]
[1770562453423,10.29928357,88.289,88.239,12.26709498]
[1770562456018,10.29928357,88.289,88.24,10.2073]
[1770562456312,10.29928357,88.289,88.18,28.15991215]
[1770562456313,10.3907664,88.316,88.241,12.25434575]
[1770562457212,10.40056568,88.332,88.27,12.25434575]
[1770562458813,10.1969,88.331,88.27,12.25434575]
[1770562460320,20.5446849,88.331,88.27,12.25434575]
[1770562460513,10.3477849,88.33,88.27,12.25434575]
[1770562460717,10.1977,88.324,88.27,12.25434575]
[1770562462613,10.34780807,88.323,88.27,12.25434575]
[1770562463518,10.35696206,88.318,88.27,12.25434575]
[1770562468113,10.43888933,88.313,88.258,10.2052]
[1770562468319,10.43888933,88.313,88.255,12.25434575]
[1770562468920,10.44709529,88.326,88.258,12.25434575]
[1770562469116,10.44740848,88.343,88.258,12.25434575]
[1770562470716,10.44740848,88.343,88.246,21.12070655]
[1770562470717,10.46595067,88.342,88.275,12.25434575]
[1770562471821,10.47428615,88.339,88.277,10.203]
[1770562472021,10.47428615,88.339,88.278,12.25434575]
[1770562472824,20.48382102,88.338,88.278,12.25434575]
[1770562473525,10.2879607,88.337,88.278,12.25434575]
[1770562477829,29.04563523,88.349,88.289,12.25434575]
[1770562478722,10.1936,88.359,88.289,12.25434575]
[1770562478928,10.49157959,88.349,88.289,12.25434575]
[1770562480733,10.49157959,88.349,88.29,10.2015]
[1770562480934,10.49157959,88.349,88.291,12.25434575]
[1770562481431,10.49157959,88.349,88.297,12.25434575]
[1770562482835,10.49157959,88.349,88.305,12.25434575]
[1770562484321,10.49157959,88.349,88.307,12.25434575]
[1770562485934,10.5551898,88.369,88.311,13.07625351]
[1770562487728,10.5551898,88.369,88.262,21.12070655]
[1770562487729,10.5551898,88.369,88.32,10.198]
[1770562487930,10.5551898,88.369,88.321,13.07625351]
[1770562494945,10.5551898,88.369,88.323,13.07625351]
[1770562500047,10.5551898,88.369,88.325,13.07625351]
[1770562500247,10.73310194,88.389,88.325,13.07625351]
[1770562500946,10.73310194,88.389,88.27,33.98]
[1770562500947,10.71880487,88.402,88.351,13.07625351]
[1770562501848,10.71880487,88.402,88.362,13.07625351]
[1770562505849,10.71880487,88.402,88.351,13.07625351]
[1770562506755,1.96941744,88.439,88.321,13.07625351]
[1770562506756,10.60026467,88.376,88.321,13.07625351]
[1770562507948,10.192,88.374,88.321,13.07625351]
[1770562508150,10.41139093,88.373,88.321,13.07625351]
[1770562515062,10.32576014,88.37,88.321,13.07625351]
[1770562515263,10.32576014,88.37,88.309,12.69058289]
[1770562516262,8.38401487,88.397,88.26,56.0]
[1770562516263,10.20406016,88.367,88.311,11.94780348]
[1770562517961,10.20406016,88.367,88.312,10.1989]
[1770562518157,10.20406016,88.367,88.313,11.94780348]
[1770562519961,10.1170236,88.379,88.318,11.94780348]
[1770562521768,10.1170236,88.379,88.331,11.94780348]
[1770562529165,10.1170236,88.379,88.339,11.94780348]
[1770562529363,10.15095987,88.392,88.339,11.94780348]
[1770562531368,10.15095987,88.392,88.341,11.94780348]
[1770562537275,10.15095987,88.392,88.343,11.94780348]
[1770562538778,10.15095987,88.392,88.352,11.94780348]
[1770562544279,10.15819896,88.386,88.327,10.1972]
[1770562544484,10.15819896,88.386,88.328,11.94780348]
[1770562545483,10.13914196,88.384,88.328,11.94780348]
[1770562545979,10.13914196,88.384,88.317,11.65101358]
[1770562546187,9.98927683,88.382,88.317,11.65101358]
[1770562546383,9.98927683,88.38,88.317,11.65101358]
[1770562546585,9.98927683,88.372,88.304,11.65101358]
[1770562546780,9.98162023,88.37,88.295,300.27696972]
[1770562546982,9.98162023,88.368,88.292,11.65101358]
[1770562547586,9.98135802,88.338,88.28,21.85371358]
[1770562548483,9.98135802,88.338,88.281,11.65101358]
[1770562550099,10.1962,88.337,88.281,11.65101358]
[1770562550298,10.07121649,88.336,88.281,11.65101358]
[1770562550987,10.06359057,88.333,88.281,11.65101358]
[1770562552695,10.1968,88.332,88.281,11.65101358]
[1770562552896,9.98440895,88.331,88.281,11.65101358]
[1770562555697,9.9587104,88.328,88.281,11.65101358]
[1770562560305,9.90102963,88.326,88.269,11.65101358]
[1770562560501,9.90102963,88.326,88.259,11.65101358]
[1770562561802,9.8623565,88.309,88.259,11.65101358]
[1770562562196,10.1996,88.308,88.259,11.65101358]
[1770562562402,9.81915312,88.307,88.259,11.65101358]
[1770562563192,9.78133629,88.299,88.247,11.65101358]
[1770562564794,9.66140554,88.296,88.247,11.65101358]
[1770562566093,9.58972953,88.293,88.237,11.65101358]
[1770562567707,9.52940203,88.29,88.237,11.65101358]
[1770562568804,9.37984044,88.288,88.237,11.65101358]
[1770562569311,9.37886875,88.281,88.225,11.65101358]
[1770562570812,9.43058071,88.279,88.225,11.65101358]
[1770562571209,9.43058071,88.279,88.213,11.65101358]
[1770562571900,9.43058071,88.279,88.211,301.59470297]
[1770562571901,9.39666625,88.268,88.215,21.86121358]
[1770562572210,9.39666625,88.268,88.147,20.4362]
[1770562572211,9.39666625,88.268,88.203,11.65101358]
[1770562573709,9.24335382,88.254,88.203,11.65101358]
[1770562574901,9.08122642,88.252,88.203,11.65101358]
[1770562575106,9.08014464,88.307,88.203,11.65101358]
[1770562576001,8.38401487,88.308,88.144,1.97274997]
[1770562576002,9.04927329,88.276,88.215,11.92366157]
[1770562577801,9.09248088,88.274,88.215,11.92366157]
[1770562578414,10.2025,88.282,88.216,10.2101]
[1770562578713,9.27344552,88.288,88.217,11.92366157]
[1770562579814,9.27344552,88.288,88.224,11.92366157]
[1770562580714,9.27344552,88.288,88.226,11.92366157]
[1770562583713,9.27344552,88.288,88.227,10.2089]
[1770562583917,9.27344552,88.288,88.228,11.92366157]
[1770562584409,9.27344552,88.288,88.23,11.92366157]
[1770562585322,9.27344552,88.288,88.234,11.92366157]
[1770562588916,9.27344552,88.288,88.179,436.19473362]
[1770562588917,10.2014,88.292,88.238,11.92366157]
[1770562589515,19.13039465,88.292,88.238,11.92366157]
[1770562589718,8.92899465,88.291,88.238,11.92366157]
[1770562591028,8.87300256,88.288,88.238,11.92366157]
[1770562591326,8.87300256,88.288,88.179,436.19473362]
[1770562591327,8.87300256,88.288,88.224,11.92366157]
[1770562592823,8.84457463,88.278,88.224,11.92366157]
[1770562595918,8.78488399,88.274,88.224,11.92366157]
[1770562596724,10.2036,88.273,88.224,11.92366157]
[1770562596920,18.96560226,88.273,88.224,11.92366157]
[1770562597124,8.76200226,88.272,88.224,11.92366157]
[1770562598915,8.70093328,88.267,88.224,11.92366157]
[1770562600821,8.65339617,88.292,88.227,11.92366157]
[1770562601329,8.36056207,88.291,88.227,11.92366157]
[1770562601627,8.65252549,88.29,88.227,11.92366157]
[1770562602721,8.83095516,88.282,88.227,11.92366157]
[1770562603820,8.80699089,88.278,88.227,11.92366157]
[1770562606427,10.2019,88.288,88.228,11.49089947]
[1770562607828,10.2019,88.288,88.229,10.2086]
[1770562608029,18.78575256,88.288,88.23,11.49089947]
[1770562608230,8.58385256,88.287,88.23,11.49089947]
[1770562609536,8.58385256,88.287,88.235,11.49089947]
[1770562611028,16.69917095,88.298,88.24,11.49089947]
[1770562611226,8.33860888,88.298,88.24,11.49089947]
[1770562612937,18.6839197,88.297,88.242,11.49089947]
[1770562613836,8.46249314,88.296,88.242,11.49089947]
[1770562615234,8.35355596,88.293,88.242,11.49089947]
[1770562615540,8.35355596,88.291,88.23,11.49089947]
[1770562615833,8.33481282,88.289,88.23,11.49089947]
[1770562616032,8.33481282,88.287,88.23,11.49089947]
[1770562616335,8.18110214,88.285,88.23,11.49089947]
[1770562616528,8.18110214,88.284,88.23,11.49089947]
[1770562616727,8.18110214,88.282,88.23,11.49089947]
[1770562619341,8.19373054,88.281,88.23,11.49089947]
[1770562619542,8.19373054,88.281,88.234,11.49089947]
[1770562619839,8.19373054,88.307,88.234,11.49089947]
[1770562620034,16.51785197,88.306,88.234,11.49089947]
[1770562620236,8.1572899,88.304,88.234,11.49089947]
[1770562620446,16.51785197,88.303,88.234,11.49089947]
[1770562620739,16.51785197,88.303,88.215,21.12070655]
[1770562620740,8.1572899,88.303,88.244,11.49089947]
[1770562621439,8.1572899,88.303,88.254,11.49089947]
[1770562622039,8.12071571,88.302,88.254,11.49089947]
[1770562623741,10.2004,88.301,88.254,11.49089947]
[1770562626642,8.36056207,88.308,88.261,11.49089947]
[1770562626837,308.75932141,88.309,88.261,11.49089947]
[1770562627044,16.38984336,88.308,88.261,11.49089947]
[1770562627243,8.02928129,88.307,88.261,11.49089947]
[1770562628044,8.01258024,88.306,88.25,11.49089947]
[1770562628247,8.19049172,88.304,88.25,11.49089947]
[1770562628446,8.19049172,88.303,88.25,11.49089947]
[1770562628946,8.17400216,88.301,88.25,11.49089947]
[1770562629745,8.17329082,88.299,88.25,11.49089947]
[1770562630847,8.03990114,88.296,88.25,11.49089947]
[1770562635553,7.9741637,88.306,88.25,11.49089947]
[1770562636457,7.81797344,88.296,88.25,11.49089947]
[1770562638459,7.89862742,88.307,88.251,11.72775212]
[1770562639757,7.89862742,88.307,88.252,10.2059]
[1770562639957,7.89862742,88.307,88.253,11.72775212]
[1770562640657,7.73059678,88.302,88.253,11.72775212]
[1770562641745,7.70230453,88.298,88.253,11.72775212]
[1770562645960,7.72817632,88.334,88.261,11.72775212]
[1770562647869,7.72817632,88.334,88.279,11.72775212]
[1770562648263,7.72817632,88.334,88.282,10.2025]
[1770562648468,7.72817632,88.334,88.283,11.72775212]
[1770562648871,10.1954,88.344,88.283,11.72775212]
[1770562649066,11.44217911,88.345,88.287,11.72775212]
[1770562649664,11.44217911,88.354,88.287,11.72775212]
[1770562650460,11.44217911,88.354,88.239,158.7835]
[1770562650461,11.44217911,88.354,88.296,11.72775212]
[1770562651766,11.44217911,88.354,88.301,11.72775212]
[1770562655975,11.44217911,88.351,88.301,11.72775212]
[1770562661072,11.44217911,88.362,88.308,11.72775212]
[1770562662683,11.44217911,88.362,88.309,10.1993]
[1770562662880,11.44217911,88.362,88.31,11.72775212]
[1770562668686,11.44217911,88.362,88.312,10.199]
[1770562668878,21.58131116,88.373,88.313,11.28762741]
[1770562669277,11.38931116,88.372,88.313,11.28762741]
[1770562669784,11.38931116,88.372,88.314,10.1987]
[1770562670083,11.38931116,88.372,88.315,11.28762741]
[1770562670272,11.38931116,88.37,88.315,11.28762741]
[1770562671783,11.38931116,88.356,88.298,11.28762741]
[1770562672684,10.1943,88.354,88.298,11.28762741]
[1770562672884,11.38931116,88.353,88.298,11.28762741]
[1770562677784,10.1944,88.352,88.298,11.28762741]
[1770562677981,11.38931116,88.351,88.298,11.28762741]
[1770562683782,11.38931116,88.351,88.299,10.2005]
[1770562683983,11.38931116,88.351,88.3,11.28762741]
[1770562685586,11.38931116,88.351,88.284,438.4232246]
[1770562685587,11.38931116,88.351,88.309,11.28762741]
[1770562687895,11.38931116,88.351,88.297,11.28762741]
[1770562688590,11.38931116,88.34,88.287,11.28762741]
[1770562690991,11.38931116,88.336,88.287,11.28762741]
[1770562691191,14.07201786,88.372,88.287,11.28762741]
[1770562691192,11.38931116,88.334,88.287,11.28762741]
[1770562692688,10.1967,88.333,88.287,11.28762741]
[1770562692892,11.38931116,88.332,88.287,11.28762741]
[1770562693802,10.1967,88.333,88.287,11.28762741]
[1770562693803,11.38931116,88.33,88.287,11.28762741]
[1770562696911,10.66779468,88.324,88.284,438.4232246]
[1770562697098,10.66779468,88.322,88.284,438.4232246]
[1770562697303,10.66779468,88.322,88.223,11.32509996]
[1770562698002,10.66779468,88.311,88.255,11.32509996]
[1770562700504,10.66779468,88.325,88.257,11.32509996]
[1770562700707,10.66779468,88.347,88.257,11.32509996]
[1770562701501,10.66779468,88.347,88.289,11.32509996]
[1770562702705,10.66779468,88.347,88.293,11.32509996]
[1770562703905,10.66779468,88.347,88.295,10.201]
[1770562704105,10.66779468,88.347,88.296,11.32509996]
[1770562717014,10.1952,88.346,88.296,11.32509996]
[1770562717212,10.66779468,88.345,88.286,11.32509996]
[1770562718720,10.1954,88.344,88.286,11.32509996]
[1770562718919,10.66779468,88.343,88.286,11.32509996]
[1770562726128,10.66779468,88.343,88.254,21.12070655]
[1770562726129,10.66779468,88.343,88.291,10.76491664]
[1770562731729,11.30982849,88.341,88.257,10.76491664]
[1770562731932,11.30982849,88.339,88.257,10.76491664]
[1770562732133,11.30982849,88.337,88.257,10.76491664]
[1770562732334,11.30982849,88.336,88.257,10.76491664]
[1770562732637,11.30982849,88.325,88.266,10.76491664]
[1770562733736,11.30982849,88.325,88.276,10.76491664]
[1770562735240,11.30982849,88.348,88.276,10.76491664]
[1770562735439,11.30982849,88.347,88.276,10.76491664]
[1770562735638,11.30982849,88.345,88.276,10.76491664]
[1770562736435,11.30982849,88.344,88.276,10.76491664]
[1770562736837,11.30982849,88.344,88.278,10.76491664]
[1770562737039,11.30982849,88.34,88.278,10.76491664]
[1770562737342,11.30982849,88.338,88.278,10.76491664]
[1770562737536,11.30982849,88.337,88.278,10.76491664]
[1770562739240,11.30982849,88.336,88.278,10.76491664]
[1770562739842,11.30982849,88.331,88.278,10.76491664]
[1770562740041,11.30982849,88.33,88.278,10.76491664]
[1770562740240,10.1971,88.329,88.278,10.76491664]
[1770562740442,11.30982849,88.327,88.265,10.76491664]
[1770562740643,11.30982849,88.325,88.265,10.76491664]
[1770562740843,11.30982849,88.323,88.265,10.76491664]
[1770562741843,10.198,88.321,88.265,10.76491664]
[1770562742041,11.30982849,88.32,88.265,10.76491664]
[1770562743249,11.30982849,88.32,88.268,10.76491664]
[1770562744742,11.30982849,88.32,88.269,10.2039]
[1770562744944,11.30982849,88.32,88.27,10.76491664]
[1770562746545,11.30982849,88.319,88.27,10.76491664]
[1770562754854,10.1985,88.318,88.27,10.76491664]
[1770562755053,10.59640803,88.317,88.27,10.76491664]
[1770562757758,10.59640803,88.315,88.27,10.76491664]
[1770562759455,10.199,88.313,88.27,10.76491664]
[1770562759759,10.59640803,88.312,88.27,10.76491664]
[1770562761663,20.79420803,88.323,88.27,10.76491664]
[1770562762065,10.59640803,88.322,88.27,10.76491664]
[1770562764464,14.07201786,88.352,88.27,10.76491664]
[1770562764465,10.59640803,88.316,88.27,10.76491664]
[1770562771576,8.38394704,88.324,88.272,10.7060863]
[1770562771871,10.59640803,88.329,88.272,10.7060863]
[1770562772775,10.59640803,88.329,88.282,10.7060863]
[1770562775178,10.59640803,88.327,88.282,10.7060863]
[1770562779483,10.59640803,88.325,88.282,10.7060863]
[1770562782380,10.59640803,88.325,88.284,10.2023]
[1770562782585,10.59640803,88.325,88.285,10.7060863]
[1770562788481,18.78066487,88.337,88.292,10.50877267]
[1770562788686,10.39671783,88.337,88.292,10.50877267]
[1770562789992,8.38394704,88.336,88.292,10.50877267]
[1770562790186,10.39671783,88.334,88.292,10.50877267]
[1770562790383,10.39671783,88.333,88.292,10.50877267]
[1770562790986,10.39671783,88.331,88.292,10.50877267]
[1770562791189,18.78066487,88.33,88.292,10.50877267]
[1770562791388,10.39671783,88.33,88.292,10.50877267]
[1770562794892,10.39671783,88.33,88.294,10.50877267]